[Event "*** Titled Tuesday Blitz"]
[Site "Chess.com"]
[Date "2021.04.27"]
[Round "9"]
[White "Anton_Demchenko"]
[Black "Abund"]
[Result "1-0"]
[WhiteElo "2937"]
[BlackElo "2765"]
[TimeControl "180+1"]
[EndTime "11:43:47 PDT"]
[Termination "Anton_Demchenko won on time"]

1. e4 {[%clk 0:03:00.4]} 1... c5 {[%clk 0:02:58.3]} 2. Nf3 {[%clk 0:03:00]} 2...
d6 {[%clk 0:02:48.1]} 3. d4 {[%clk 0:02:59.1]} 3... cxd4 {[%clk 0:02:47.6]} 4.
Qxd4 {[%clk 0:02:59.7]} 4... Nc6 {[%clk 0:02:47.4]} 5. Qe3 {[%clk 0:03:00.3]}
5... g6 {[%clk 0:02:46.3]} 6. h3 {[%clk 0:03:00]} 6... Bh6 {[%clk 0:02:41.5]} 7.
Qc3 {[%clk 0:02:58.9]} 7... e5 {[%clk 0:02:30.7]} 8. Bxh6 {[%clk 0:02:50.7]}
8... Nxh6 {[%clk 0:02:30.3]} 9. Qd2 {[%clk 0:02:51.3]} 9... Ng8 {[%clk
0:02:27.8]} 10. Nc3 {[%clk 0:02:48]} 10... Nf6 {[%clk 0:02:27]} 11. O-O-O {[%clk
0:02:48.7]} 11... Ke7 {[%clk 0:02:14.6]} 12. Bc4 {[%clk 0:02:44.1]} 12... Be6
{[%clk 0:02:08.5]} 13. Bb3 {[%clk 0:02:42.3]} 13... Rc8 {[%clk 0:01:59.4]} 14.
Kb1 {[%clk 0:02:41.9]} 14... a6 {[%clk 0:01:55.8]} 15. Rhe1 {[%clk 0:02:32.1]}
15... Na5 {[%clk 0:01:46.9]} 16. Qh6 {[%clk 0:01:59]} 16... Nxb3 {[%clk
0:01:42.6]} 17. cxb3 {[%clk 0:01:29.3]} 17... Qf8 {[%clk 0:01:20.7]} 18. Qe3
{[%clk 0:01:27.1]} 18... Qd8 {[%clk 0:01:16.8]} 19. Qh6 {[%clk 0:01:21.2]} 19...
Qf8 {[%clk 0:01:04.7]} 20. Qh4 {[%clk 0:01:21.7]} 20... h6 {[%clk 0:01:02.7]}
21. Nd2 {[%clk 0:01:09.3]} 21... g5 {[%clk 0:01:00.1]} 22. Qg3 {[%clk
0:01:09.2]} 22... b5 {[%clk 0:00:54.4]} 23. b4 {[%clk 0:01:06.3]} 23... Qd8
{[%clk 0:00:44.8]} 24. Qe3 {[%clk 0:01:05.3]} 24... Qc7 {[%clk 0:00:41.3]} 25.
Rc1 {[%clk 0:01:00.8]} 25... Qb7 {[%clk 0:00:39]} 26. Nb3 {[%clk 0:00:54.1]}
26... Bxb3 {[%clk 0:00:33.6]} 27. axb3 {[%clk 0:00:55]} 27... Rc6 {[%clk
0:00:30.8]} 28. g3 {[%clk 0:00:53.6]} 28... Rhc8 {[%clk 0:00:26]} 29. f4 {[%clk
0:00:53.8]} 29... gxf4 {[%clk 0:00:23.8]} 30. gxf4 {[%clk 0:00:54]} 30... Qd7
{[%clk 0:00:18.1]} 31. Rcd1 {[%clk 0:00:49]} 31... Qe6 {[%clk 0:00:15.8]} 32.
Nd5+ {[%clk 0:00:49.6]} 32... Nxd5 {[%clk 0:00:13.4]} 33. exd5 {[%clk
0:00:49.8]} 33... Qf5+ {[%clk 0:00:13.9]} 34. Ka2 {[%clk 0:00:49.6]} 34... Rc2
{[%clk 0:00:09.4]} 35. fxe5 {[%clk 0:00:46.4]} 35... dxe5 {[%clk 0:00:09.7]} 36.
d6+ {[%clk 0:00:40.9]} 36... Kd7 {[%clk 0:00:04.2]} 37. Qa7+ {[%clk 0:00:39.4]}
37... Kc6 {[%clk 0:00:03.8]} 38. d7 {[%clk 0:00:26.7]} 38... Rd8 {[%clk
0:00:02.7]} 39. Rf1 {[%clk 0:00:25.6]} 39... Qe6 {[%clk 0:00:02.3]} 40. Rf6
{[%clk 0:00:16.7]} 40... Qxf6 {[%clk 0:00:02.2]} 41. Qxa6+ {[%clk 0:00:17]}
41... Kc7 {[%clk 0:00:02.4]} 42. Qxf6 {[%clk 0:00:17.7]} 42... Ra8+ {[%clk
0:00:02.4]} 43. Kb1 {[%clk 0:00:18]} 43... Rd2 {[%clk 0:00:02.9]} 44. Rxd2
{[%clk 0:00:17]} 1-0

[Event "*** Titled Tuesday Blitz"]
[Site "Chess.com"]
[Date "2021.04.27"]
[Round "9"]
[White "Natalya_Buksa"]
[Black "moro182"]
[Result "0-1"]
[WhiteElo "2528"]
[BlackElo "2710"]
[TimeControl "180+1"]
[EndTime "11:43:48 PDT"]
[Termination "moro182 won by resignation"]

1. d4 {[%clk 0:03:00.9]} 1... g6 {[%clk 0:02:56.4]} 2. Nc3 {[%clk 0:03:00.6]}
2... Bg7 {[%clk 0:02:57.3]} 3. e4 {[%clk 0:03:01]} 3... d6 {[%clk 0:02:58.2]} 4.
Bg5 {[%clk 0:03:00.4]} 4... Nf6 {[%clk 0:02:59.1]} 5. e5 {[%clk 0:03:00.4]} 5...
Nfd7 {[%clk 0:02:49.6]} 6. f4 {[%clk 0:03:00]} 6... Nb6 {[%clk 0:02:42]} 7. Nf3
{[%clk 0:02:52.8]} 7... d5 {[%clk 0:02:15.7]} 8. Bd3 {[%clk 0:02:47.9]} 8... Nc6
{[%clk 0:02:12.6]} 9. a3 {[%clk 0:02:46.7]} 9... Bg4 {[%clk 0:02:04.1]} 10. Be2
{[%clk 0:02:43]} 10... Qd7 {[%clk 0:02:02.2]} 11. h3 {[%clk 0:02:42.3]} 11...
Bxf3 {[%clk 0:02:00]} 12. Bxf3 {[%clk 0:02:43.2]} 12... h5 {[%clk 0:01:56.4]}
13. Bh4 {[%clk 0:02:39.4]} 13... e6 {[%clk 0:01:53.9]} 14. Qd3 {[%clk
0:02:28.6]} 14... Bh6 {[%clk 0:01:51.4]} 15. Ne2 {[%clk 0:02:24.5]} 15... Ne7
{[%clk 0:01:37.9]} 16. g4 {[%clk 0:02:23.5]} 16... hxg4 {[%clk 0:01:29.1]} 17.
hxg4 {[%clk 0:02:20.4]} 17... Bg7 {[%clk 0:01:27.3]} 18. O-O-O {[%clk
0:02:13.7]} 18... O-O-O {[%clk 0:01:26.7]} 19. Kb1 {[%clk 0:02:00.7]} 19... Rde8
{[%clk 0:01:19.9]} 20. Ng3 {[%clk 0:01:38.5]} 20... Nc4 {[%clk 0:01:12.9]} 21.
Ka2 {[%clk 0:01:20.8]} 21... Nc6 {[%clk 0:01:08]} 22. f5 {[%clk 0:01:18.9]}
22... gxf5 {[%clk 0:01:01.1]} 23. gxf5 {[%clk 0:01:18.7]} 23... Bf8 {[%clk
0:00:59.4]} 24. Nh5 {[%clk 0:01:02.4]} 24... Be7 {[%clk 0:00:31.1]} 25. Nf6
{[%clk 0:00:40.2]} 25... Bxf6 {[%clk 0:00:30.2]} 26. Bxf6 {[%clk 0:00:41.1]}
26... Rxh1 {[%clk 0:00:29.6]} 27. Rxh1 {[%clk 0:00:40.5]} 27... exf5 {[%clk
0:00:23.3]} 28. Rh5 {[%clk 0:00:39.5]} 28... Nb6 {[%clk 0:00:18.5]} 29. Bg2
{[%clk 0:00:28.2]} 29... Kb8 {[%clk 0:00:16.6]} 30. Bh3 {[%clk 0:00:28.2]} 30...
Na5 {[%clk 0:00:12.2]} 31. Bxf5 {[%clk 0:00:24.4]} 31... Qa4 {[%clk 0:00:12.4]}
32. Rh7 {[%clk 0:00:21.3]} 32... Nc6 {[%clk 0:00:12.5]} 33. Rxf7 {[%clk
0:00:12.2]} 33... Nb4+ {[%clk 0:00:11.7]} 34. Kb1 {[%clk 0:00:10.3]} 34... Nxd3
{[%clk 0:00:12.6]} 35. cxd3 {[%clk 0:00:10.8]} 35... Qd1+ {[%clk 0:00:09.9]} 36.
Ka2 {[%clk 0:00:10.7]} 36... Qh5 {[%clk 0:00:09.2]} 37. e6 {[%clk 0:00:07]}
37... Qxf5 {[%clk 0:00:08.4]} 38. e7 {[%clk 0:00:07.1]} 38... Qd7 {[%clk
0:00:08]} 39. Rf8 {[%clk 0:00:07.5]} 39... Nc8 {[%clk 0:00:07.9]} 40. Rf7 {[%clk
0:00:06.8]} 40... a5 {[%clk 0:00:07.5]} 41. Rh7 {[%clk 0:00:06.3]} 41... a4
{[%clk 0:00:07.9]} 42. Kb1 {[%clk 0:00:06]} 42... Qb5 {[%clk 0:00:07.9]} 43. Ka1
{[%clk 0:00:04.9]} 43... Qc6 {[%clk 0:00:07.4]} 44. Kb1 {[%clk 0:00:04.5]} 44...
Qxf6 {[%clk 0:00:07]} 0-1

[Event "*** Titled Tuesday Blitz"]
[Site "Chess.com"]
[Date "2021.04.27"]
[Round "9"]
[White "chess94cu"]
[Black "klimkoj"]
[Result "1-0"]
[WhiteElo "2591"]
[BlackElo "2610"]
[TimeControl "180+1"]
[EndTime "11:43:48 PDT"]
[Termination "chess94cu won by resignation"]

1. d4 {[%clk 0:03:00.9]} 1... Nf6 {[%clk 0:02:59.8]} 2. Bf4 {[%clk 0:03:01.4]}
2... b6 {[%clk 0:02:57.9]} 3. Nc3 {[%clk 0:02:59.6]} 3... Bb7 {[%clk 0:02:56.8]}
4. Nf3 {[%clk 0:02:59.8]} 4... e6 {[%clk 0:02:56.6]} 5. e3 {[%clk 0:02:58.9]}
5... Bb4 {[%clk 0:02:55.1]} 6. Bd3 {[%clk 0:02:58.4]} 6... O-O {[%clk
0:02:54.2]} 7. O-O {[%clk 0:02:57.1]} 7... Bxc3 {[%clk 0:02:52.3]} 8. bxc3
{[%clk 0:02:55.7]} 8... d6 {[%clk 0:02:53.2]} 9. h3 {[%clk 0:02:50.5]} 9... Nbd7
{[%clk 0:02:51.4]} 10. Qe2 {[%clk 0:02:50.1]} 10... Re8 {[%clk 0:02:51.3]} 11.
Bb5 {[%clk 0:02:40.5]} 11... a6 {[%clk 0:02:41.2]} 12. Ba4 {[%clk 0:02:39.6]}
12... b5 {[%clk 0:02:41.4]} 13. Bb3 {[%clk 0:02:39.7]} 13... e5 {[%clk
0:02:42.3]} 14. dxe5 {[%clk 0:02:40.2]} 14... dxe5 {[%clk 0:02:41.6]} 15. Bg3
{[%clk 0:02:40.7]} 15... e4 {[%clk 0:02:26.1]} 16. Ng5 {[%clk 0:02:26]} 16...
Re7 {[%clk 0:02:19.7]} 17. a4 {[%clk 0:02:22.3]} 17... h6 {[%clk 0:01:56.2]} 18.
Nxf7 {[%clk 0:02:20.7]} 18... Rxf7 {[%clk 0:01:56.3]} 19. Bxf7+ {[%clk
0:02:21.4]} 19... Kxf7 {[%clk 0:01:55.9]} 20. axb5 {[%clk 0:02:22.3]} 20... axb5
{[%clk 0:01:38.3]} 21. Qxb5 {[%clk 0:02:23.2]} 21... Bd5 {[%clk 0:01:34]} 22. c4
{[%clk 0:02:21.9]} 22... Be6 {[%clk 0:01:17.2]} 23. Bxc7 {[%clk 0:01:51]} 23...
Qxc7 {[%clk 0:01:12.2]} 24. Rxa8 {[%clk 0:01:50.8]} 24... Bxc4 {[%clk
0:01:12.8]} 25. Qa5 {[%clk 0:01:51.4]} 25... Qxa5 {[%clk 0:01:11.1]} 26. Rxa5
{[%clk 0:01:52.3]} 26... Bxf1 {[%clk 0:01:12]} 27. Kxf1 {[%clk 0:01:53]} 27...
Ke6 {[%clk 0:01:08.5]} 28. Ke2 {[%clk 0:01:52.7]} 28... Ne8 {[%clk 0:00:55.5]}
29. f3 {[%clk 0:01:48]} 29... exf3+ {[%clk 0:00:55.1]} 30. gxf3 {[%clk
0:01:48.9]} 30... Nd6 {[%clk 0:00:54.3]} 31. f4 {[%clk 0:01:37]} 31... Nf6
{[%clk 0:00:47.5]} 32. Kf3 {[%clk 0:01:36.9]} 32... g5 {[%clk 0:00:39.5]} 33.
fxg5 {[%clk 0:01:34.6]} 33... hxg5 {[%clk 0:00:40.4]} 34. Rxg5 {[%clk
0:01:33.8]} 34... Nfe4 {[%clk 0:00:41]} 35. Ra5 {[%clk 0:01:30.3]} 35... Nd2+
{[%clk 0:00:40.1]} 36. Ke2 {[%clk 0:01:29.7]} 36... N2c4 {[%clk 0:00:40.6]} 37.
Ra8 {[%clk 0:01:27.6]} 37... Ne5 {[%clk 0:00:40.1]} 38. h4 {[%clk 0:01:27]}
38... Nf5 {[%clk 0:00:38.4]} 39. Ra4 {[%clk 0:01:24]} 39... Ng6 {[%clk
0:00:34.3]} 40. Ra6+ {[%clk 0:01:19.3]} 40... Kf7 {[%clk 0:00:34.1]} 41. c4
{[%clk 0:01:19.6]} 41... Ngxh4 {[%clk 0:00:30.3]} 42. c5 {[%clk 0:01:20.1]}
42... Ne7 {[%clk 0:00:26.7]} 43. e4 {[%clk 0:01:06.8]} 43... Nhg6 {[%clk
0:00:22.5]} 44. Ke3 {[%clk 0:01:06.8]} 44... Ne5 {[%clk 0:00:21.8]} 45. Ra7
{[%clk 0:01:01.1]} 45... Ke6 {[%clk 0:00:20.3]} 46. Ra6+ {[%clk 0:01:00.7]}
46... N5c6 {[%clk 0:00:20.5]} 47. Rb6 {[%clk 0:00:58.8]} 47... Ke5 {[%clk
0:00:20.5]} 48. Rb7 {[%clk 0:00:58.2]} 48... Ke6 {[%clk 0:00:20.9]} 49. Rc7
{[%clk 0:00:54.9]} 49... Ke5 {[%clk 0:00:21]} 50. Kd3 {[%clk 0:00:52.7]} 50...
Ke6 {[%clk 0:00:21.4]} 51. Kc4 {[%clk 0:00:52.3]} 51... Kf6 {[%clk 0:00:12.5]}
52. Kb5 {[%clk 0:00:49.4]} 52... Nd4+ {[%clk 0:00:12.9]} 53. Kb6 {[%clk
0:00:49]} 53... Ke6 {[%clk 0:00:12.5]} 54. Ra7 {[%clk 0:00:44.9]} 54... Ndc6
{[%clk 0:00:12.6]} 55. Ra8 {[%clk 0:00:42.3]} 55... Kd7 {[%clk 0:00:12.7]} 56.
Rh8 {[%clk 0:00:40.8]} 56... Ke6 {[%clk 0:00:12.8]} 57. Rh6+ {[%clk 0:00:40.6]}
57... Ke5 {[%clk 0:00:11.2]} 58. Rxc6 {[%clk 0:00:40.5]} 58... Nxc6 {[%clk
0:00:12.1]} 59. Kxc6 {[%clk 0:00:41.2]} 1-0

[Event "*** Titled Tuesday Blitz"]
[Site "Chess.com"]
[Date "2021.04.27"]
[Round "9"]
[White "miragha_yev"]
[Black "SilviusTiberius"]
[Result "1-0"]
[WhiteElo "2743"]
[BlackElo "2626"]
[TimeControl "180+1"]
[EndTime "11:43:49 PDT"]
[Termination "miragha_yev won on time"]

1. e4 {[%clk 0:03:00.9]} 1... e5 {[%clk 0:02:58.7]} 2. Nc3 {[%clk 0:02:58.9]}
2... Nf6 {[%clk 0:02:58]} 3. Nf3 {[%clk 0:02:57.8]} 3... Nc6 {[%clk 0:02:57.1]}
4. d4 {[%clk 0:02:57.7]} 4... exd4 {[%clk 0:02:57.4]} 5. Nxd4 {[%clk 0:02:58.6]}
5... Bb4 {[%clk 0:02:57.5]} 6. Nxc6 {[%clk 0:02:56.6]} 6... bxc6 {[%clk
0:02:57.8]} 7. Bd3 {[%clk 0:02:57.2]} 7... d5 {[%clk 0:02:58.1]} 8. exd5 {[%clk
0:02:58.1]} 8... O-O {[%clk 0:02:58.3]} 9. O-O {[%clk 0:02:57.2]} 9... Bg4
{[%clk 0:02:58.3]} 10. f3 {[%clk 0:02:57]} 10... Bh5 {[%clk 0:02:57.7]} 11. dxc6
{[%clk 0:02:55.7]} 11... Qd4+ {[%clk 0:02:56.2]} 12. Kh1 {[%clk 0:02:55.5]}
12... Bxc3 {[%clk 0:02:56.5]} 13. bxc3 {[%clk 0:02:56.4]} 13... Qxc3 {[%clk
0:02:56.9]} 14. Bg5 {[%clk 0:02:49.2]} 14... Qxc6 {[%clk 0:02:51.1]} 15. Qd2
{[%clk 0:02:45.4]} 15... Bg6 {[%clk 0:02:43]} 16. Qa5 {[%clk 0:02:25]} 16...
Bxd3 {[%clk 0:02:34.3]} 17. cxd3 {[%clk 0:02:25.9]} 17... Qd5 {[%clk 0:02:27.6]}
18. Qxd5 {[%clk 0:02:22.1]} 18... Nxd5 {[%clk 0:02:28.5]} 19. Rfc1 {[%clk
0:02:22.3]} 19... f6 {[%clk 0:02:27.2]} 20. Bh4 {[%clk 0:02:21.9]} 20... Rf7
{[%clk 0:02:05.4]} 21. Rc5 {[%clk 0:02:20.3]} 21... Rd7 {[%clk 0:02:05.1]} 22.
h3 {[%clk 0:02:17.6]} 22... Nf4 {[%clk 0:02:03.1]} 23. Bg3 {[%clk 0:02:16.1]}
23... Nxd3 {[%clk 0:02:02.4]} 24. Rxc7 {[%clk 0:02:15.5]} 24... Rxc7 {[%clk
0:02:02.5]} 25. Bxc7 {[%clk 0:02:16.4]} 25... Rc8 {[%clk 0:02:02.6]} 26. Bg3
{[%clk 0:02:13.7]} 26... Rc2 {[%clk 0:02:01.8]} 27. Rd1 {[%clk 0:02:12.6]} 27...
Rc1 {[%clk 0:01:56.2]} 28. Rxc1 {[%clk 0:02:10.1]} 28... Nxc1 {[%clk 0:01:57.1]}
29. a3 {[%clk 0:02:07.7]} 29... Kf7 {[%clk 0:01:54.7]} 30. Bb8 {[%clk
0:02:02.1]} 30... a6 {[%clk 0:01:53.2]} 31. Kg1 {[%clk 0:02:03]} 31... Ke6
{[%clk 0:01:50.5]} 32. Kf2 {[%clk 0:02:03.3]} 32... Kd5 {[%clk 0:01:51]} 33. Ke3
{[%clk 0:02:03.4]} 33... Kc4 {[%clk 0:01:50.5]} 34. Ke4 {[%clk 0:02:01.7]} 34...
Nd3 {[%clk 0:01:43.1]} 35. Bd6 {[%clk 0:02:00.7]} 35... g6 {[%clk 0:01:33.6]}
36. h4 {[%clk 0:01:56.5]} 36... f5+ {[%clk 0:01:25.2]} 37. Ke3 {[%clk
0:01:55.1]} 37... a5 {[%clk 0:01:24.1]} 38. g4 {[%clk 0:01:50.5]} 38... fxg4
{[%clk 0:01:18.1]} 39. fxg4 {[%clk 0:01:51.4]} 39... h5 {[%clk 0:01:09.8]} 40.
gxh5 {[%clk 0:01:44.3]} 40... gxh5 {[%clk 0:01:10.7]} 41. Ke4 {[%clk 0:01:44.7]}
41... Nf2+ {[%clk 0:01:02.2]} 42. Kf4 {[%clk 0:01:40.7]} 42... Kd5 {[%clk
0:00:58.5]} 43. Bc7 {[%clk 0:01:33.5]} 43... Ke6 {[%clk 0:00:20.8]} 44. Kg5
{[%clk 0:01:27.9]} 44... Ne4+ {[%clk 0:00:11.2]} 45. Kxh5 {[%clk 0:01:27.5]}
45... a4 {[%clk 0:00:08.9]} 46. Kg4 {[%clk 0:01:26.4]} 46... Nf6+ {[%clk
0:00:07.4]} 47. Kg5 {[%clk 0:01:25.9]} 47... Ne4+ {[%clk 0:00:06.7]} 48. Kg6
{[%clk 0:01:26.1]} 48... Nf6 {[%clk 0:00:05.8]} 49. Bb8 {[%clk 0:01:21.6]} 49...
Ng8 {[%clk 0:00:05.6]} 50. h5 {[%clk 0:01:18.4]} 50... Ne7+ {[%clk 0:00:05.9]}
51. Kg5 {[%clk 0:01:17.6]} 51... Kf7 {[%clk 0:00:06.3]} 52. h6 {[%clk
0:01:16.3]} 52... Ng6 {[%clk 0:00:05.2]} 53. Kf5 {[%clk 0:01:11.9]} 53... Ne7+
{[%clk 0:00:05]} 54. Kg5 {[%clk 0:00:58.7]} 54... Ng6 {[%clk 0:00:03.1]} 55. Bd6
{[%clk 0:00:57.3]} 55... Nh8 {[%clk 0:00:01.9]} 56. Kf5 {[%clk 0:00:56]} 56...
Kg8 {[%clk 0:00:02.3]} 57. Ke6 {[%clk 0:00:48.9]} 57... Nf7 {[%clk 0:00:01.7]}
58. Bf4 {[%clk 0:00:48.6]} 58... Kh7 {[%clk 0:00:02.6]} 59. Kxf7 {[%clk
0:00:48]} 1-0

[Event "*** Titled Tuesday Blitz"]
[Site "Chess.com"]
[Date "2021.04.27"]
[Round "9"]
[White "onnoelgersma"]
[Black "AniJak"]
[Result "1-0"]
[WhiteElo "2453"]
[BlackElo "2291"]
[TimeControl "180+1"]
[EndTime "11:43:51 PDT"]
[Termination "onnoelgersma won by resignation"]

1. Nf3 {[%clk 0:03:00.9]} 1... d5 {[%clk 0:02:58.8]} 2. b3 {[%clk 0:02:59.9]}
2... Nf6 {[%clk 0:02:57.3]} 3. Bb2 {[%clk 0:03:00.1]} 3... c5 {[%clk 0:02:56.9]}
4. e3 {[%clk 0:02:58.4]} 4... Nc6 {[%clk 0:02:56.8]} 5. Bb5 {[%clk 0:02:58.8]}
5... Bg4 {[%clk 0:02:55.8]} 6. h3 {[%clk 0:02:41.8]} 6... Bxf3 {[%clk
0:02:54.8]} 7. Qxf3 {[%clk 0:02:41.1]} 7... e6 {[%clk 0:02:55.7]} 8. O-O {[%clk
0:02:36.9]} 8... Be7 {[%clk 0:02:49.9]} 9. Bxc6+ {[%clk 0:02:30.7]} 9... bxc6
{[%clk 0:02:47.9]} 10. d3 {[%clk 0:02:31.1]} 10... O-O {[%clk 0:02:47.1]} 11.
Nd2 {[%clk 0:02:29.2]} 11... Rb8 {[%clk 0:02:46.1]} 12. Be5 {[%clk 0:02:20.3]}
12... Bd6 {[%clk 0:02:41.3]} 13. Bc3 {[%clk 0:01:57.6]} 13... Nd7 {[%clk
0:02:25.4]} 14. e4 {[%clk 0:01:57.1]} 14... Be5 {[%clk 0:02:22]} 15. Bxe5 {[%clk
0:01:51.7]} 15... Nxe5 {[%clk 0:02:22.9]} 16. Qg3 {[%clk 0:01:51.7]} 16... Ng6
{[%clk 0:02:17.9]} 17. f4 {[%clk 0:01:49.5]} 17... Qh4 {[%clk 0:02:15.5]} 18.
Qxh4 {[%clk 0:01:38.3]} 18... Nxh4 {[%clk 0:02:15.1]} 19. Rae1 {[%clk
0:01:24.7]} 19... Rfe8 {[%clk 0:02:06.4]} 20. g4 {[%clk 0:01:21.1]} 20... h6
{[%clk 0:01:57.6]} 21. Kh2 {[%clk 0:01:20.1]} 21... Ng6 {[%clk 0:01:53.6]} 22.
Kg3 {[%clk 0:01:19.6]} 22... Nf8 {[%clk 0:01:36.6]} 23. h4 {[%clk 0:01:17.8]}
23... Rb6 {[%clk 0:01:28.3]} 24. h5 {[%clk 0:01:14]} 24... Ra6 {[%clk
0:01:27.8]} 25. a4 {[%clk 0:01:14.4]} 25... Rb6 {[%clk 0:01:28.1]} 26. g5 {[%clk
0:01:13.9]} 26... Nh7 {[%clk 0:01:24.2]} 27. Kh4 {[%clk 0:01:12.6]} 27... Rb7
{[%clk 0:01:10.6]} 28. Rg1 {[%clk 0:01:11.6]} 28... Kh8 {[%clk 0:01:10.6]} 29.
Ref1 {[%clk 0:01:05.8]} 29... Rd7 {[%clk 0:01:03]} 30. g6 {[%clk 0:01:00.1]}
30... fxg6 {[%clk 0:01:02.5]} 31. Rxg6 {[%clk 0:01:01]} 31... Nf6 {[%clk
0:00:57.2]} 32. e5 {[%clk 0:00:50.9]} 32... Ng8 {[%clk 0:00:56.7]} 33. Kg4
{[%clk 0:00:46.5]} 33... Rf7 {[%clk 0:00:51.9]} 34. Nf3 {[%clk 0:00:45.2]} 34...
Ref8 {[%clk 0:00:49.2]} 35. Nh4 {[%clk 0:00:43.4]} 35... Re7 {[%clk 0:00:44.5]}
36. Rf2 {[%clk 0:00:37.5]} 36... Rd8 {[%clk 0:00:43.9]} 37. Re2 {[%clk 0:00:35]}
37... c4 {[%clk 0:00:42.1]} 38. f5 {[%clk 0:00:32.3]} 38... cxd3 {[%clk
0:00:39]} 39. cxd3 {[%clk 0:00:31.3]} 39... exf5+ {[%clk 0:00:35.4]} 40. Nxf5
{[%clk 0:00:32.2]} 40... Rb7 {[%clk 0:00:28.5]} 41. e6 {[%clk 0:00:28.8]} 41...
Re8 {[%clk 0:00:25.8]} 42. e7 {[%clk 0:00:24.4]} 42... Rexe7 {[%clk 0:00:17.3]}
43. Nxe7 {[%clk 0:00:23.2]} 43... Nxe7 {[%clk 0:00:16.8]} 44. Rge6 {[%clk
0:00:22.4]} 44... Ng8 {[%clk 0:00:16.8]} 45. Re8 {[%clk 0:00:21.7]} 45... Rxb3
{[%clk 0:00:14.2]} 46. Ra8 {[%clk 0:00:20.8]} 46... Kh7 {[%clk 0:00:14.4]} 47.
Kf5 {[%clk 0:00:17.8]} 47... Rxd3 {[%clk 0:00:13.2]} 48. Ree8 {[%clk 0:00:18.1]}
48... g6+ {[%clk 0:00:03.8]} 49. hxg6+ {[%clk 0:00:17.1]} 1-0

[Event "*** Titled Tuesday Blitz"]
[Site "Chess.com"]
[Date "2021.04.27"]
[Round "9"]
[White "CrushingKings"]
[Black "chessflav"]
[Result "1-0"]
[WhiteElo "2516"]
[BlackElo "2354"]
[TimeControl "180+1"]
[EndTime "11:43:53 PDT"]
[Termination "CrushingKings won by checkmate"]

1. e4 {[%clk 0:03:00.9]} 1... c5 {[%clk 0:02:58.5]} 2. d4 {[%clk 0:02:59.9]}
2... cxd4 {[%clk 0:02:58.4]} 3. c3 {[%clk 0:03:00.5]} 3... dxc3 {[%clk
0:02:57.6]} 4. Nxc3 {[%clk 0:03:01.4]} 4... Nc6 {[%clk 0:02:57.2]} 5. Nf3 {[%clk
0:03:01.9]} 5... e6 {[%clk 0:02:57.8]} 6. Bc4 {[%clk 0:03:02.4]} 6... a6 {[%clk
0:02:57.9]} 7. O-O {[%clk 0:03:01.9]} 7... Qc7 {[%clk 0:02:58.1]} 8. Qe2 {[%clk
0:02:52]} 8... d6 {[%clk 0:02:54.8]} 9. Bf4 {[%clk 0:02:51.6]} 9... Nf6 {[%clk
0:02:38.4]} 10. Rfd1 {[%clk 0:02:50.7]} 10... Be7 {[%clk 0:02:35.8]} 11. Rac1
{[%clk 0:02:25.9]} 11... O-O {[%clk 0:02:32.5]} 12. Bb3 {[%clk 0:02:19.6]} 12...
Qb8 {[%clk 0:01:59.7]} 13. e5 {[%clk 0:02:16.8]} 13... dxe5 {[%clk 0:01:56.7]}
14. Nxe5 {[%clk 0:02:16.6]} 14... Nxe5 {[%clk 0:01:56.2]} 15. Bxe5 {[%clk
0:02:16.8]} 15... Qa7 {[%clk 0:01:55.9]} 16. Ne4 {[%clk 0:02:12]} 16... Ne8
{[%clk 0:00:58.3]} 17. Qh5 {[%clk 0:01:43.8]} 17... b5 {[%clk 0:00:56.1]} 18.
Rd3 {[%clk 0:01:32.3]} 18... Qb7 {[%clk 0:00:40.1]} 19. Rh3 {[%clk 0:00:58.1]}
19... h6 {[%clk 0:00:14.1]} 20. Bxg7 {[%clk 0:00:48.5]} 20... Nxg7 {[%clk
0:00:15]} 21. Qxh6 {[%clk 0:00:48.5]} 21... f6 {[%clk 0:00:15.4]} 22. Qh7+
{[%clk 0:00:32.7]} 22... Kf7 {[%clk 0:00:15.4]} 23. Rg3 {[%clk 0:00:33.2]} 23...
Rg8 {[%clk 0:00:15.5]} 24. Qg6+ {[%clk 0:00:30.5]} 24... Kf8 {[%clk 0:00:15.8]}
25. Nxf6 {[%clk 0:00:30.6]} 25... Bxf6 {[%clk 0:00:16.1]} 26. Qxf6+ {[%clk
0:00:29.1]} 26... Qf7 {[%clk 0:00:16.8]} 27. Qd8+ {[%clk 0:00:27.4]} 27... Qe8
{[%clk 0:00:16.6]} 28. Rf3+ {[%clk 0:00:27.5]} 28... Nf5 {[%clk 0:00:16.3]} 29.
Qf6+ {[%clk 0:00:15.7]} 29... Qf7 {[%clk 0:00:16.4]} 30. Qxf7+ {[%clk
0:00:13.2]} 30... Kxf7 {[%clk 0:00:16.7]} 31. Rxf5+ {[%clk 0:00:13.8]} 31... Ke7
{[%clk 0:00:16.9]} 32. Rfc5 {[%clk 0:00:13.9]} 32... Bd7 {[%clk 0:00:16.8]} 33.
Rc7 {[%clk 0:00:14.3]} 33... Rad8 {[%clk 0:00:16.8]} 34. Rd1 {[%clk 0:00:14.5]}
34... Rg5 {[%clk 0:00:14.3]} 35. g3 {[%clk 0:00:13.3]} 35... Re5 {[%clk
0:00:14.5]} 36. h4 {[%clk 0:00:13.3]} 36... Re2 {[%clk 0:00:13.5]} 37. Bc2
{[%clk 0:00:11.6]} 37... Ke8 {[%clk 0:00:10.4]} 38. Bg6+ {[%clk 0:00:10.6]}
38... Ke7 {[%clk 0:00:10.8]} 39. h5 {[%clk 0:00:07.5]} 39... Rxb2 {[%clk
0:00:10.9]} 40. h6 {[%clk 0:00:07.9]} 40... Rxa2 {[%clk 0:00:11]} 41. h7 {[%clk
0:00:08.3]} 41... Ra4 {[%clk 0:00:10.5]} 42. Rdxd7+ {[%clk 0:00:07.4]} 42...
Rxd7 {[%clk 0:00:10.3]} 43. Rxd7+ {[%clk 0:00:07.8]} 43... Kf6 {[%clk
0:00:11.2]} 44. h8=Q+ {[%clk 0:00:07.8]} 44... Kxg6 {[%clk 0:00:11.4]} 45. Rg7+
{[%clk 0:00:08]} 45... Kf5 {[%clk 0:00:12]} 46. Qh5+ {[%clk 0:00:08.7]} 46...
Ke4 {[%clk 0:00:12.2]} 47. Rg4+ {[%clk 0:00:09.2]} 47... Kf3 {[%clk 0:00:12]}
48. Rxa4# {[%clk 0:00:10.1]} 1-0